bitfinex/quotes_BTCUSD_20260104
["timestamp","ask_amount","ask_price","bid_price","bid_amount"]
[1767518101141,0.06582952,91295.0,91294.0,0.3795092]
[1767518101610,0.0109547,91285.0,91281.0,0.01095518]
[1767518101894,0.04765492,91287.0,91284.0,0.05477396]
[1767518102095,0.04765492,91287.0,91285.0,0.05477337]
[1767518102750,0.04765492,91287.0,91286.0,0.05477291]
[1767518103367,0.02192,91289.0,91286.0,0.06572749]
[1767518103567,0.07669117,91289.0,91286.0,0.01095458]
[1767518103822,0.08764539,91289.0,91285.0,0.0657281]
[1767518104024,0.000152,91286.0,91285.0,0.0657281]
[1767518104433,0.08764539,91289.0,91285.0,0.0657281]
[1767518104873,0.08764539,91289.0,91284.0,0.01095482]
[1767518105081,0.06572606,91288.0,91284.0,0.06572891]
[1767518105240,0.06572635,91288.0,91284.0,0.06572891]
[1767518105574,0.06572689,91287.0,91284.0,0.01095482]
[1767518106045,0.01095446,91287.0,91284.0,0.06572874]
[1767518106760,0.0549266,91284.0,91282.0,0.04775348]
[1767518106976,0.0549266,91284.0,91278.0,0.01095554]
[1767518106977,0.01095494,91283.0,91280.0,0.04775348]
[1767518107193,0.0657301,91283.0,91280.0,0.04775348]
[1767518107783,0.0648831,91283.0,91280.0,0.04775348]
[1767518109357,0.06572896,91284.0,91281.0,0.04775348]
[1767518109556,0.01095482,91284.0,91281.0,0.11348446]
[1767518109760,0.06572821,91285.0,91282.0,0.04775348]
[1767518109960,0.0109547,91285.0,91282.0,0.11348361]
[1767518110165,0.06572835,91285.0,91282.0,0.04675448]
[1767518110389,0.01095458,91286.0,91282.0,0.11248483]
[1767518110616,0.06572774,91286.0,91282.0,0.11248483]
[1767518110806,0.05477354,91285.0,91282.0,0.05770954]
[1767518111503,0.06572774,91286.0,91282.0,0.11248464]
[1767518112280,0.05477363,91285.0,91282.0,0.05770954]
[1767518112592,0.06572774,91286.0,91281.0,0.0065937]
[1767518112932,0.06572774,91286.0,91282.0,0.01095506]
[1767518113298,0.01095446,91287.0,91283.0,0.06572965]
[1767518113526,0.06572711,91288.0,91284.0,0.06572873]
[1767518114271,0.06572711,91288.0,91284.0,0.01095482]
[1767518115456,0.06572711,91288.0,91284.0,0.06572863]
[1767518115891,0.05477232,91287.0,91284.0,0.06572863]
[1767518116075,0.05477232,91287.0,91284.0,0.01095482]
[1767518116076,0.06572678,91287.0,91284.0,0.01095482]
[1767518116273,0.05477314,91286.0,91282.0,0.06573033]
[1767518116438,0.06572772,91286.0,91283.0,0.05477466]
[1767518117688,0.06572772,91286.0,91282.0,0.06573033]
[1767518118008,0.01095458,91286.0,91283.0,0.06572948]
[1767518118350,0.01095458,91286.0,91283.0,0.11348296]
[1767518118759,0.06572651,91288.0,91285.0,0.05477351]
[1767518118985,0.06572651,91288.0,91286.0,0.000999]
[1767518119184,0.02192,91289.0,91286.0,0.05577185]
[1767518119389,0.07669122,91289.0,91286.0,0.05477285]
[1767518119755,0.07669122,91289.0,91285.0,0.06572808]
[1767518119954,0.02192,91289.0,91286.0,0.05477265]
[1767518120203,0.020921,91289.0,91287.0,0.05477229]
[1767518120624,0.01095386,91292.0,91287.0,0.05477229]
[1767518120625,0.07679647,91295.0,91291.0,0.06572359]
[1767518120991,0.03287302,91299.0,91295.0,0.11347403]
[1767518121208,0.02192,91299.0,91296.0,0.01095338]
[1767518121412,0.02192,91299.0,91296.0,0.05870686]
[1767518121591,0.02192,91299.0,91298.0,0.05476571]
[1767518121760,0.02192,91299.0,91297.0,0.05476631]
[1767518121946,0.02192,91299.0,91298.0,0.05476571]
[1767518122385,0.06571607,91302.0,91298.0,0.01090911]
[1767518122742,0.06571607,91302.0,91298.0,0.06567434]
[1767518123761,0.05476272,91303.0,91299.0,0.0657177]
[1767518124214,0.05476347,91302.0,91299.0,0.01095302]
[1767518124417,0.06571526,91303.0,91299.0,0.06571789]
[1767518125209,0.0547634,91302.0,91299.0,0.06571789]
[1767518125448,0.0547634,91302.0,91299.0,0.01095302]
[1767518125807,0.01095254,91303.0,91300.0,0.05476438]
[1767518126007,0.000999,91300.0,91299.0,0.06571758]
[1767518126651,0.06571605,91302.0,91299.0,0.06571758]
[1767518126802,0.06571605,91302.0,91299.0,0.06567355]
[1767518127482,0.01095254,91303.0,91300.0,0.0109529]
[1767518127695,0.0157157,91303.0,91299.0,0.06567355]
[1767518127895,0.01095254,91303.0,91301.0,0.04775348]
[1767518128417,0.01095254,91303.0,91300.0,0.0109529]
[1767518128693,0.01095158,91311.0,91303.0,0.05775348]
[1767518128912,0.02192,91307.0,91304.0,0.0587059]
[1767518129131,0.02192,91309.0,91306.0,0.04775348]
[1767518129242,0.03287182,91309.0,91306.0,0.05770666]
[1767518129442,0.03287182,91309.0,91306.0,0.05476075]
[1767518129641,0.03287182,91309.0,91306.0,0.06571293]
[1767518129642,0.02192,91309.0,91306.0,0.06571293]
[1767518129883,0.06571063,91310.0,91309.0,0.000999]
[1767518130292,0.06571063,91310.0,91307.0,0.06571228]
[1767518130496,0.0109517,91310.0,91307.0,0.06571228]
[1767518130698,0.06571063,91311.0,91307.0,0.06571228]
[1767518131104,0.06571027,91310.0,91307.0,0.01095206]
[1767518131491,0.06576571,91310.0,91307.0,0.01095206]
[1767518131884,0.05475919,91309.0,91306.0,0.06571293]
[1767518132120,0.06576571,91310.0,91306.0,0.06571293]
[1767518132553,0.01095122,91314.0,91310.0,0.05575692]
[1767518132742,0.0657078,91314.0,91310.0,0.06575692]
[1767518132944,0.06570337,91320.0,91316.0,0.06060418]
[1767518133181,0.0657035,91320.0,91318.0,0.0496532]
[1767518133349,0.05475311,91319.0,91318.0,0.0496532]
[1767518134504,0.0109505,91320.0,91318.0,0.0496532]
[1767518135155,0.07667198,91321.0,91318.0,0.10440682]
[1767518135734,0.08762236,91321.0,91318.0,0.0496532]
[1767518135929,0.05475266,91320.0,91318.0,0.0496532]
[1767518136132,0.06570236,91321.0,91318.0,0.0496532]
[1767518137842,0.06570236,91321.0,91319.0,0.0496532]
[1767518138778,0.0109505,91320.0,91317.0,0.0496532]
[1767518138956,0.05475313,91319.0,91317.0,0.0496532]
[1767518139157,0.06570301,91320.0,91317.0,0.0496532]
[1767518140297,0.05475318,91319.0,91317.0,0.0496532]
[1767518140493,0.06570445,91318.0,91314.0,0.06060442]
[1767518140660,0.06570532,91317.0,91314.0,0.06060442]
[1767518141063,0.06570393,91319.0,91316.0,0.0496532]
[1767518141467,0.06570393,91319.0,91316.0,0.1044081]
[1767518141905,0.01095062,91319.0,91316.0,0.11535908]
[1767518142071,0.03287026,91322.0,91319.0,0.010999]
[1767518142632,0.03287026,91322.0,91319.0,0.0596532]
[1767518142828,0.08762205,91322.0,91319.0,0.0496532]
[1767518143611,0.08762205,91322.0,91319.0,0.10440627]
[1767518143806,0.08762205,91322.0,91319.0,0.0496532]
[1767518144123,0.05475189,91323.0,91319.0,0.05475286]
[1767518144476,0.06570017,91324.0,91320.0,0.05475237]
[1767518145142,0.05475184,91322.0,91318.0,0.01095074]
[1767518145337,0.06570108,91323.0,91318.0,0.0657039]
[1767518145629,0.05475148,91322.0,91319.0,0.05475308]
[1767518145978,0.05475148,91322.0,91318.0,0.0657039]
[1767518146487,0.05475148,91322.0,91319.0,0.0547531]
[1767518146683,0.06570174,91322.0,91319.0,0.06570372]
[1767518147139,0.05475195,91321.0,91318.0,0.0657039]
[1767518147496,0.06570174,91322.0,91318.0,0.0657039]
[1767518148041,0.06570174,91322.0,91319.0,0.05475282]
[1767518148720,0.05475851,91310.0,91308.0,0.02192]
[1767518148856,0.05475851,91310.0,91305.0,0.0109523]
[1767518149061,0.05476271,91303.0,91300.0,0.02192]
[1767518149388,0.01095362,91294.0,91283.0,0.01095494]
[1767518149532,0.01095422,91289.0,91284.0,0.08764884]
[1767518149735,0.01095398,91291.0,91289.0,0.01]
[1767518149972,0.06572461,91290.0,91285.0,0.0606079]
[1767518150168,0.01095398,91291.0,91286.0,0.01095458]
[1767518150406,0.01095398,91291.0,91287.0,0.05477219]
[1767518150608,0.06572275,91293.0,91289.0,0.05477111]
[1767518150822,0.06572275,91293.0,91289.0,0.06572533]
[1767518151195,0.05476991,91291.0,91287.0,0.06572665]
[1767518151398,0.06572322,91292.0,91288.0,0.0547717]
[1767518151635,0.06572252,91293.0,91289.0,0.01095422]
[1767518151873,0.01095374,91293.0,91290.0,0.05477045]
[1767518152074,0.01095374,91293.0,91290.0,0.06572455]
[1767518152826,0.05477015,91291.0,91288.0,0.01095434]
[1767518153241,0.06572327,91292.0,91288.0,0.01095434]
[1767518153445,0.05477019,91291.0,91288.0,0.01095434]
[1767518153881,0.06572417,91291.0,91288.0,0.01095434]
[1767518154082,0.06572417,91291.0,91287.0,0.06572632]
[1767518154218,0.000999,91288.0,91287.0,0.0657267]
[1767518154613,0.06572417,91291.0,91287.0,0.0657267]
[1767518155115,0.01095398,91291.0,91287.0,0.0657267]
[1767518155569,0.06572435,91291.0,91287.0,0.0657267]
[1767518155768,0.05477063,91290.0,91287.0,0.0657267]
[1767518155974,0.06572435,91291.0,91287.0,0.0657267]
[1767518157211,0.06572435,91291.0,91287.0,0.06572665]
[1767518157660,0.05477056,91290.0,91287.0,0.06572665]
[1767518158801,0.06572435,91291.0,91288.0,0.0547716]
[1767518158965,0.06572435,91291.0,91288.0,0.06572594]
[1767518158966,0.01095398,91291.0,91288.0,0.06572594]
[1767518159167,0.06572318,91292.0,91288.0,0.06572594]
[1767518159168,0.01095374,91293.0,91289.0,0.06572487]
[1767518159922,0.06572273,91293.0,91289.0,0.06572487]
[1767518160502,0.06572332,91292.0,91289.0,0.01095422]
[1767518160706,0.06572332,91292.0,91288.0,0.06572497]
[1767518161273,0.06572332,91292.0,91289.0,0.05477092]
[1767518161674,0.0547689,91293.0,91290.0,0.06572429]
[1767518161897,0.06572264,91293.0,91289.0,0.06572522]
[1767518163277,0.000999,91289.0,91288.0,0.06572562]
[1767518163850,0.06572341,91292.0,91289.0,0.0547711]
[1767518164301,0.06572341,91292.0,91288.0,0.06572562]
[1767518167194,0.06572341,91292.0,91289.0,0.05477074]
[1767518167396,0.01095386,91292.0,91289.0,0.06572496]
[1767518168536,0.06572259,91293.0,91290.0,0.0547702]
[1767518168900,0.06572259,91293.0,91289.0,0.06572496]
[1767518169233,0.06572259,91293.0,91290.0,0.05477042]
[1767518169437,0.01095374,91293.0,91290.0,0.05477042]
[1767518170039,0.01095374,91293.0,91288.0,0.01095434]
[1767518170040,0.000999,91290.0,91288.0,0.01095434]
[1767518170240,0.000999,91290.0,91288.0,0.06572563]
[1767518170440,0.06572367,91292.0,91288.0,0.06572563]
[1767518170621,0.01095386,91292.0,91289.0,0.0657252]
[1767518170822,0.06572324,91292.0,91289.0,0.0657252]
[1767518171927,0.01095386,91292.0,91289.0,0.0657252]
[1767518173696,0.06572329,91292.0,91289.0,0.0657252]
[1767518174335,0.01095386,91292.0,91289.0,0.0657252]
[1767518174948,0.06572247,91293.0,91290.0,0.05477043]
[1767518175537,0.06572176,91294.0,91290.0,0.06572453]
[1767518175758,0.05476862,91295.0,91291.0,0.01095398]
[1767518176074,0.05476862,91295.0,91291.0,0.06572339]
[1767518176836,0.06572212,91295.0,91291.0,0.06572339]
[1767518177041,0.05476892,91293.0,91290.0,0.0657246]
[1767518177242,0.000999,91291.0,91290.0,0.0657246]
[1767518177443,1e-08,91291.0,91290.0,0.0657246]
[1767518177665,0.06572199,91294.0,91290.0,0.0657246]
[1767518178642,0.0109529,91300.0,91293.0,0.01095374]
[1767518178830,0.06571999,91297.0,91294.0,0.06476769]
[1767518179029,0.05476716,91296.0,91294.0,0.000999]
[1767518179236,0.06571957,91297.0,91293.0,0.06572201]
[1767518179534,0.05476702,91296.0,91293.0,0.06572201]
[1767518180368,0.06571957,91297.0,91296.0,0.000999]
[1767518180797,0.01095266,91302.0,91296.0,0.01195238]
[1767518180996,0.01095242,91304.0,91301.0,0.05476341]
[1767518181203,0.06571473,91304.0,91300.0,0.06571622]
[1767518181398,0.06571473,91304.0,91300.0,0.0656722]
[1767518181809,0.06571473,91304.0,91301.0,0.05476387]
[1767518182192,0.00685531,91303.0,91302.0,0.05476331]
[1767518182390,0.21951359,91316.0,91308.0,0.01095194]
[1767518182391,0.06570913,91313.0,91308.0,0.01095194]
[1767518182593,0.02192,91312.0,91311.0,0.06570893]
[1767518182821,0.00049332,91316.0,91311.0,0.06570893]
[1767518182822,0.06619941,91316.0,91312.0,0.06570877]
[1767518183126,0.08811941,91316.0,91312.0,0.06570877]
[1767518183506,0.06570121,91323.0,91319.0,0.05475252]
[1767518183689,0.05475152,91322.0,91318.0,0.06570392]
[1767518183887,0.06606283,91323.0,91319.0,0.05475279]
[1767518184310,0.01095062,91319.0,91316.0,0.01095098]
[1767518184475,0.06570326,91320.0,91317.0,0.05475431]
[1767518184825,0.01095122,91314.0,91309.0,0.01095182]
[1767518185025,0.01095122,91314.0,91304.0,0.21904694]
[1767518185026,0.06571046,91310.0,91306.0,0.06571252]
[1767518185343,0.11464045,91311.0,91307.0,0.06571232]
[1767518185490,0.01095158,91311.0,91308.0,0.06571113]
[1767518185682,0.06570925,91312.0,91309.0,0.05475905]
[1767518185906,0.01095134,91313.0,91309.0,0.06571087]
[1767518186302,0.00149231,91309.0,91306.0,0.06571199]
[1767518186532,0.00149231,91309.0,91306.0,0.01095218]
[1767518186683,0.01095146,91312.0,91309.0,0.01095182]
[1767518187028,0.06570843,91313.0,91309.0,0.01095182]
[1767518188028,0.05475635,91314.0,91310.0,0.0109517]
[1767518188228,0.05475487,91317.0,91314.0,0.05475592]
[1767518188556,0.06570389,91319.0,91315.0,0.06470745]
[1767518188716,0.01095074,91318.0,91315.0,0.06470745]
[1767518189294,0.07667361,91320.0,91315.0,0.06470745]
[1767518189295,0.06570211,91322.0,91318.0,0.000999]
[1767518189500,0.08762211,91322.0,91318.0,0.000999]
[1767518189954,0.08762211,91322.0,91317.0,0.05475416]
[1767518190111,0.0004933,91317.0,91315.0,0.06570605]
[1767518190314,0.0004933,91317.0,91313.0,0.06570804]
[1767518190315,0.05524787,91317.0,91313.0,0.06570804]
[1767518190519,0.0004933,91317.0,91312.0,0.01090654]
[1767518190756,0.05475571,91315.0,91312.0,0.06566275]
[1767518190927,0.05475637,91314.0,91310.0,0.06570976]
[1767518191133,0.06570759,91314.0,91311.0,0.05475771]
[1767518191334,0.01095122,91314.0,91311.0,0.06570929]
[1767518192236,0.06570778,91315.0,91312.0,0.05475716]
[1767518193588,0.06561972,91315.0,91312.0,0.05475716]
[1767518193807,0.06561972,91315.0,91311.0,0.06570929]
[1767518194090,0.06561972,91315.0,91312.0,0.01095146]
[1767518194091,0.01086304,91315.0,91312.0,0.01095146]
[1767518194784,0.065706,91316.0,91312.0,0.01095146]
[1767518195018,0.065706,91316.0,91313.0,0.0547567]
[1767518195134,0.065706,91316.0,91312.0,0.06570827]
[1767518196013,0.06570556,91317.0,91313.0,0.06570752]
[1767518196207,0.06570556,91317.0,91314.0,0.01095122]
[1767518196371,0.06570556,91317.0,91314.0,0.06570679]
[1767518196372,0.01095086,91317.0,91314.0,0.06570679]
[1767518197003,0.06570489,91319.0,91316.0,0.01095098]
[1767518197413,0.05475373,91318.0,91315.0,0.06570661]
[1767518197594,0.06570447,91318.0,91315.0,0.06570661]
[1767518198145,0.06570448,91318.0,91315.0,0.06570661]
[1767518199349,0.06570448,91318.0,91316.0,0.05475491]
[1767518199899,0.01095074,91318.0,91316.0,0.05475491]
[1767518200105,0.06570489,91319.0,91316.0,0.05475491]
[1767518202750,0.05475394,91318.0,91315.0,0.06570661]
[1767518203411,0.05475374,91318.0,91315.0,0.06570661]
[1767518204550,0.06570448,91318.0,91315.0,0.06570661]
[1767518205161,0.06570301,91320.0,91315.0,0.0109511]
[1767518205359,0.06570301,91320.0,91316.0,0.06570548]
[1767518205965,0.06570301,91320.0,91317.0,0.0547542]
[1767518206268,0.06570301,91320.0,91316.0,0.06570548]
[1767518206608,0.06570301,91320.0,91317.0,0.05475408]
[1767518206814,0.06570336,91321.0,91317.0,0.06570494]
[1767518207045,0.05511262,91323.0,91317.0,0.06570494]
[1767518207046,0.00036162,91323.0,91321.0,0.06425809]
[1767518207248,0.00036162,91323.0,91321.0,0.00950669]
[1767518207463,0.00036162,91323.0,91321.0,0.00850769]
[1767518207669,0.05511247,91323.0,91320.0,0.05475191]
[1767518207844,0.02192,91324.0,91323.0,0.00063738]
[1767518208163,0.02192,91324.0,91312.0,0.26511881]
[1767518208164,0.08772861,91324.0,91321.0,0.01095038]
[1767518208332,0.08772857,91324.0,91321.0,0.06570227]
[1767518208947,0.02202838,91324.0,91321.0,0.01095038]
[1767518209149,0.02139138,91324.0,91323.0,0.05475071]
[1767518211061,0.00438453,91324.0,91323.0,0.05475071]
[1767518211288,0.01,91323.0,91322.0,0.05475098]
[1767518211638,0.01,91323.0,91321.0,0.06570227]
[1767518211842,0.01,91323.0,91321.0,0.06570201]
[1767518212038,0.01,91323.0,91321.0,0.06470301]
[1767518212883,0.05475836,91311.0,91308.0,0.05475948]
[1767518213045,0.05475851,91310.0,91307.0,0.01095206]
[1767518213248,0.05475841,91311.0,91307.0,0.01095206]
[1767518213492,0.05475851,91310.0,91307.0,0.06571184]
[1767518213708,0.05475841,91311.0,91307.0,0.06571184]
[1767518213907,0.01095146,91312.0,91308.0,0.06571138]
[1767518214189,0.01095146,91312.0,91309.0,0.0662038]
[1767518214694,0.05475838,91311.0,91309.0,0.00049334]
[1767518214945,0.05475838,91311.0,91309.0,1e-08]
[1767518215280,0.05475851,91310.0,91309.0,1e-08]
[1767518216084,0.01095146,91312.0,91309.0,1e-08]
[1767518216301,0.05475791,91311.0,91309.0,0.05475908]
[1767518216503,0.0547568,91313.0,91310.0,0.05475804]
[1767518216720,0.0547568,91313.0,91311.0,0.000999]
[1767518217069,0.06570737,91314.0,91311.0,0.05475783]
[1767518217490,0.02192,91317.0,91315.0,0.05475525]
[1767518217693,0.02192,91317.0,91316.0,0.05475491]
[1767518217843,0.01741769,91317.0,91316.0,0.05475491]
[1767518218105,0.06570236,91321.0,91317.0,0.05475397]
[1767518218233,0.01095014,91323.0,91320.0,0.05475251]
[1767518218434,0.01095014,91323.0,91321.0,0.05475135]
[1767518218435,0.02192,91323.0,91321.0,0.05475135]
[1767518218635,0.02192,91323.0,91321.0,0.06570173]
[1767518219458,0.02192,91323.0,91322.0,0.05475131]
[1767518220485,0.02142667,91323.0,91322.0,0.05475131]
[1767518221633,0.010999,91322.0,91320.0,0.06570296]
[1767518221839,0.010999,91322.0,91304.0,0.01095242]
[1767518221840,0.05475851,91310.0,91304.0,0.01095242]
[1767518222045,0.05475851,91310.0,91281.0,0.43820023]
[1767518222046,0.05475851,91310.0,91300.0,0.06571728]
[1767518222194,0.05475851,91310.0,91300.0,0.0109529]
[1767518222393,0.05475851,91310.0,91303.0,0.01095254]
[1767518222595,0.10012601,91310.0,91302.0,0.06571588]
[1767518222787,0.10012601,91310.0,91304.0,0.01095242]
[1767518222988,0.10012601,91310.0,91303.0,0.01095254]
[1767518223230,0.05475851,91310.0,91307.0,0.01095206]
[1767518223439,0.05475903,91310.0,91305.0,0.03142597]
[1767518223748,0.05475903,91310.0,91306.0,0.05476039]
[1767518224269,0.06570893,91312.0,91308.0,0.05475949]
[1767518224472,0.06570893,91312.0,91309.0,0.04747477]
[1767518224700,0.0001518,91326.0,91309.0,0.04747477]
[1767518224701,0.02192,91315.0,91310.0,0.0109517]
[1767518224825,0.02192,91315.0,91312.0,0.04747477]
[1767518225040,0.02192,91315.0,91314.0,0.04747477]
[1767518225349,0.02192,91317.0,91316.0,0.04747477]
[1767518225713,0.05475255,91320.0,91317.0,0.04747477]
[1767518225913,0.08762339,91321.0,91318.0,0.04747477]
[1767518226032,0.08762339,91321.0,91318.0,0.04647577]
[1767518226236,0.08762339,91321.0,91315.0,0.06570647]
[1767518226237,0.05475381,91318.0,91315.0,0.06570647]
[1767518226474,0.01095074,91318.0,91313.0,0.01095134]
[1767518226652,0.01095074,91318.0,91314.0,0.01095122]
[1767518226858,0.01095062,91319.0,91315.0,0.11318126]
[1767518227407,0.02192,91321.0,91319.0,0.05475294]
[1767518227595,0.02192,91321.0,91319.0,0.06475294]
[1767518227807,0.06570097,91323.0,91320.0,0.04747477]
[1767518227808,0.05475148,91322.0,91320.0,0.04747477]
[1767518228010,0.06570229,91321.0,91317.0,0.06570465]
[1767518228172,0.06570321,91320.0,91317.0,0.01095086]
[1767518228366,0.05475338,91319.0,91316.0,0.06570589]
[1767518228592,0.06570233,91321.0,91319.0,0.000999]
[1767518229108,0.06570233,91321.0,91317.0,0.06570473]
[1767518229336,0.06570092,91323.0,91321.0,0.01]
[1767518229490,0.01095014,91323.0,91321.0,0.01]
[1767518229672,0.06580885,91324.0,91320.0,0.06570282]
[1767518229867,3.27e-06,91325.0,91324.0,0.04836539]
[1767518230069,3.27e-06,91325.0,91324.0,0.04747477]
[1767518231573,3.27e-06,91325.0,91323.0,0.05475071]
[1767518231878,3.27e-06,91325.0,91324.0,0.05475012]
[1767518232601,0.05474734,91329.0,91323.0,0.05475071]
[1767518232602,0.08761591,91330.0,91327.0,0.05747477]
[1767518232803,0.08761591,91330.0,91323.0,0.01095014]
[1767518232804,0.05474772,91328.0,91325.0,0.11317382]
[1767518233004,0.06569707,91329.0,91326.0,0.04747477]
[1767518234509,0.06569707,91329.0,91326.0,0.10222362]
[1767518234908,0.01094942,91329.0,91327.0,0.10217906]
[1767518235108,0.08761701,91330.0,91328.0,0.04747477]
[1767518235434,0.08761701,91330.0,91327.0,0.10222275]
[1767518235831,0.08761412,91333.0,91330.0,0.04747477]
[1767518236011,0.01094858,91336.0,91333.0,0.04747477]
[1767518236177,0.06569118,91337.0,91334.0,0.04747477]
[1767518236379,0.05474307,91336.0,91334.0,0.04747477]
[1767518236584,0.0109481,91340.0,91335.0,0.04747477]
[1767518236585,0.05474112,91339.0,91335.0,0.04747477]
[1767518236787,0.0328675,91345.0,91342.0,0.04747477]
[1767518237001,0.05496171,91344.0,91342.0,0.04647577]
[1767518237218,0.00022302,91344.0,91343.0,0.05473873]
[1767518237480,0.00022302,91344.0,91343.0,0.04747477]
[1767518237753,0.00022302,91344.0,91343.0,0.1022135]
[1767518237916,0.01094702,91349.0,91343.0,0.1022135]
[1767518237917,0.01094714,91348.0,91346.0,0.04747477]
[1767518238639,0.06568324,91348.0,91346.0,0.04747477]
[1767518239277,0.06568332,91349.0,91346.0,0.04747477]
[1767518239471,0.06568201,91350.0,91347.0,0.01094726]
[1767518239672,0.0109469,91350.0,91346.0,0.06568427]
[1767518239869,0.06568222,91349.0,91346.0,0.01094738]
[1767518240054,0.06568222,91349.0,91346.0,0.06568422]
[1767518240258,0.01072402,91349.0,91346.0,0.06568422]
[1767518240577,0.06568259,91350.0,91346.0,0.01094738]
[1767518240966,0.05473375,91352.0,91348.0,0.05473572]
[1767518241169,0.01094666,91352.0,91347.0,0.06568306]
[1767518241404,0.0656808,91351.0,91347.0,0.06568306]
[1767518241735,0.01094642,91354.0,91351.0,0.00977698]
[1767518241865,0.01094642,91354.0,91352.0,0.05473316]
[1767518242069,0.06567857,91354.0,91351.0,0.06568066]
[1767518242304,0.05473275,91353.0,91350.0,0.0109469]
[1767518242550,0.05473276,91353.0,91351.0,0.05473391]
[1767518242761,0.05473276,91353.0,91350.0,0.0109469]
[1767518243085,0.01094642,91354.0,91351.0,0.01094678]
[1767518243698,0.06567736,91356.0,91354.0,0.00977698]
[1767518243894,0.05473154,91355.0,91354.0,0.00877798]
[1767518244336,0.05473219,91354.0,91351.0,0.06568069]
[1767518244496,0.01094618,91356.0,91352.0,0.06567994]
[1767518244699,0.01094618,91356.0,91354.0,0.05473202]
[1767518244931,0.08759686,91358.0,91354.0,0.05473202]
[1767518244932,0.03286594,91358.0,91354.0,0.01094642]
[1767518245140,0.06567655,91357.0,91353.0,0.06567922]
[1767518245733,0.01094726,91347.0,91343.0,0.01094774]
[1767518245997,0.0109469,91350.0,91345.0,0.06568499]
[1767518246353,0.06568077,91351.0,91348.0,0.11315763]
[1767518246572,0.01094678,91351.0,91348.0,0.04747477]
[1767518246787,0.05473479,91350.0,91348.0,0.04647577]
[1767518246932,0.06568215,91349.0,91346.0,0.05842215]
[1767518247314,0.01094762,91344.0,91340.0,0.06939477]
[1767518247511,0.06468703,91344.0,91341.0,0.06568788]
[1767518247713,0.01094738,91346.0,91341.0,0.01094798]
[1767518247918,0.01094738,91346.0,91343.0,0.06568589]
[1767518248119,0.01094738,91346.0,91344.0,0.05473804]
[1767518248414,0.01094726,91347.0,91344.0,0.05473804]
[1767518249627,0.01094726,91347.0,91345.0,0.05473752]
[1767518250052,0.00222102,91345.0,91343.0,0.05842251]
[1767518250340,0.00213297,91345.0,91342.0,0.01094786]
[1767518250548,0.01094738,91346.0,91343.0,0.06568619]
[1767518250986,0.01094774,91343.0,91337.0,0.06569047]
[1767518251141,0.01094774,91343.0,91335.0,0.0109487]
[1767518251142,0.01094822,91339.0,91335.0,0.0547432]
[1767518251342,0.01094834,91338.0,91335.0,0.0547432]
[1767518251615,0.05474247,91337.0,91334.0,0.06569281]
[1767518251931,0.01094846,91337.0,91334.0,7.122e-05]
[1767518252257,0.05474343,91336.0,91334.0,7.122e-05]
[1767518253210,0.0656908,91337.0,91334.0,0.05481481]
[1767518253400,0.0656908,91337.0,91334.0,0.06576363]
[1767518253606,0.06569049,91338.0,91337.0,8.8e-05]
[1767518253607,0.01094834,91338.0,91337.0,8.8e-05]
[1767518253909,0.01094834,91338.0,91336.0,0.05474274]
[1767518254120,0.06568758,91343.0,91340.0,0.06568825]
[1767518254418,0.06568621,91344.0,91340.0,0.06568825]
[1767518254718,0.06568621,91344.0,91341.0,0.0547396]
[1767518255076,0.06568503,91345.0,91343.0,0.05473869]
[1767518255273,0.000911,91343.0,91341.0,0.06568788]
[1767518255481,0.05473826,91344.0,91341.0,0.06568788]
[1767518255691,0.06568588,91344.0,91341.0,0.06568788]
[1767518256337,0.01094762,91344.0,91342.0,0.05473924]
[1767518256553,0.01094762,91344.0,91342.0,0.05436323]
[1767518256982,0.01094762,91344.0,91342.0,0.05429517]
[1767518257203,0.01094762,91344.0,91341.0,0.06568788]
[1767518257405,0.06568632,91344.0,91341.0,0.06568788]
[1767518257633,0.05474055,91340.0,91337.0,0.01094846]
[1767518257860,0.06568984,91339.0,91336.0,0.05474273]
[1767518258649,0.05474178,91338.0,91335.0,0.06569174]
[1767518258879,0.05474245,91337.0,91334.0,0.06576415]
[1767518259341,0.0109481,91340.0,91337.0,0.01]
[1767518259559,0.0109481,91340.0,91334.0,0.0657641]
[1767518259560,0.06569006,91338.0,91334.0,0.0657641]
[1767518259977,0.06568918,91340.0,91337.0,0.01094846]
[1767518260183,0.06568918,91340.0,91338.0,0.04542658]
[1767518260930,0.0109481,91340.0,91338.0,0.10016801]
[1767518261134,0.06568902,91341.0,91339.0,0.04542658]
[1767518261660,0.06568531,91346.0,91340.0,0.0109481]
[1767518261860,0.05473736,91346.0,91343.0,0.01094774]
[1767518262109,0.05473736,91346.0,91343.0,0.05637432]
[1767518262322,0.06568367,91347.0,91343.0,0.06568597]
[1767518262530,0.03286678,91351.0,91344.0,0.04542658]
[1767518262696,0.05473564,91349.0,91346.0,0.11111041]
[1767518263101,0.06568196,91350.0,91347.0,0.05473615]
[1767518263382,0.01094666,91352.0,91350.0,0.01]
[1767518263550,0.06567721,91356.0,91351.0,0.01094678]
[1767518263756,0.01094618,91356.0,91352.0,0.05637324]
[1767518263958,0.01094606,91357.0,91352.0,0.05637324]
[1767518264159,0.06567627,91358.0,91355.0,0.10015788]
[1767518264357,0.01094594,91358.0,91355.0,0.11110418]
[1767518264579,0.21913539,91364.0,91359.0,0.05472857]
[1767518264580,0.06582437,91363.0,91359.0,0.05472857]
[1767518264782,0.000999,91359.0,91358.0,0.06567567]
[1767518265122,0.000999,91359.0,91357.0,0.0656763]
[1767518265328,0.06582442,91363.0,91359.0,0.01094582]
[1767518265555,0.0001518,91363.0,91360.0,0.0109457]
[1767518265782,0.0001518,91363.0,91360.0,0.06567424]
[1767518266005,0.0001518,91363.0,91361.0,0.05472788]
[1767518266250,0.05487877,91363.0,91360.0,0.06567424]
[1767518266418,0.000999,91361.0,91360.0,0.06567424]
[1767518266932,0.06567388,91362.0,91359.0,0.05472913]
[1767518267131,0.0001518,91363.0,91362.0,0.01]
[1767518267339,0.0001518,91363.0,91360.0,0.05472802]
[1767518267749,0.000999,91360.0,91359.0,0.01094582]
[1767518267961,1e-08,91360.0,91359.0,0.06567496]
[1767518268130,0.0001518,91363.0,91361.0,0.05472779]
[1767518268537,0.0001518,91363.0,91362.0,0.05472734]
[1767518269422,0.03290483,91371.0,91366.0,0.01094499]
[1767518269553,0.03290483,91371.0,91366.0,0.06566981]
[1767518269751,0.08762689,91371.0,91368.0,0.05472361]
[1767518269943,0.08762689,91371.0,91368.0,0.05457261]
[1767518270759,0.00051715,91369.0,91368.0,0.05457261]
[1767518271208,0.08762689,91371.0,91370.0,0.05472255]
[1767518271209,0.02196044,91371.0,91370.0,0.05472255]
[1767518271423,4.044e-05,91371.0,91370.0,0.05472255]
[1767518271624,0.06566275,91376.0,91372.0,0.06566562]
[1767518271857,0.06577114,91376.0,91373.0,0.05472069]
[1767518272066,0.06577135,91376.0,91373.0,0.06566484]
[1767518272422,0.00010839,91376.0,91374.0,0.05472016]
[1767518272624,0.02192,91378.0,91376.0,0.00084961]
[1767518272866,0.02192,91378.0,91376.0,0.00075885]
[1767518273055,0.01094391,91375.0,91370.0,0.01094451]
[1767518273250,0.06604429,91375.0,91371.0,0.05472194]